bitfinex-derivatives/quotes_SOLF0:USTF0_20250329
["timestamp","ask_amount","ask_price","bid_price","bid_amount"]
[1743273961722,7.9708,125.51,125.47,7.9726]
[1743273961924,5.13350505,125.5,125.47,30.92]
[1743273962119,5.13350505,125.49,125.48,7.9724]
[1743273962314,18.92034386,125.52,125.48,7.9724]
[1743273962521,5.13283648,125.51,125.48,7.9724]
[1743273962722,5.13283648,125.5,125.49,0.05092615]
[1743273964417,13.10393648,125.5,125.49,0.05092615]
[1743273964819,5.13283648,125.5,125.49,0.05092615]
[1743273965924,0.05568814,125.51,125.49,8.02252615]
[1743273966126,0.05568814,125.51,125.5,30.92]
[1743273966625,0.05568814,125.51,125.5,38.8911]
[1743273977136,0.05568814,125.51,125.49,0.05092615]
[1743273978231,8.02648814,125.51,125.49,0.05092615]
[1743273978536,0.05568814,125.51,125.5,30.9]
[1743273978931,0.05568814,125.51,125.49,0.05092615]
[1743273979631,8.02668814,125.51,125.49,0.05092615]
[1743273979827,0.05568814,125.51,125.49,0.05092615]
[1743273980023,5.1331833,125.5,125.49,0.05092615]
[1743273980228,13.1042833,125.5,125.49,0.05092615]
[1743273981832,5.1331833,125.5,125.44,7.9746]
[1743273982034,16.88850328,125.47,125.4,30.88]
[1743273982333,16.88850328,125.45,125.34,21.88497617]
[1743273982638,5.14217165,125.44,125.38,7.9783]
[1743273982828,7.9766,125.42,125.38,38.8583]
[1743273983035,8.03800854,125.42,125.38,38.8583]
[1743273983336,7.9774,125.41,125.37,7.9792]
[1743273983533,0.06140854,125.42,125.36,30.88]
[1743273983835,0.06132126,125.4,125.38,7.9783]
[1743273984836,0.06132126,125.4,125.37,7.9791]
[1743273985036,0.06132126,125.4,125.36,30.88]
[1743273985836,0.06132126,125.4,125.37,7.979]
[1743273986139,8.03922126,125.4,125.36,30.88]
[1743273986441,0.06132126,125.4,125.31,279.74850328]
[1743273986732,4.1987,125.4,125.32,32.27515345]
[1743273986934,0.05638187,125.37,125.34,7.9808]
[1743273987342,0.05638187,125.37,125.33,30.9]
[1743273987637,0.05638187,125.37,125.34,38.8612]
[1743273987843,8.03608187,125.37,125.31,262.86]
[1743273988040,8.03608187,125.37,125.33,30.88]
[1743273988237,8.03608187,125.37,125.33,38.8615]
[1743273988642,7.9803,125.36,125.33,38.8619]
[1743273988944,0.05638187,125.37,125.32,30.9]
[1743273989242,7.9794,125.37,125.33,7.9816]
[1743273989544,0.05606022,125.36,125.33,7.9816]
[1743273990743,8.03616022,125.36,125.32,30.9]
[1743273991842,8.03616022,125.36,125.33,7.9818]
[1743273992545,0.05606022,125.36,125.32,30.9]
[1743273993044,0.05606022,125.36,125.33,7.9816]
[1743273993542,0.05606022,125.36,125.32,30.9]
[1743273994247,0.05606022,125.36,125.33,7.9815]
[1743273994941,0.05606022,125.36,125.34,7.9812]
[1743273996349,8.03616022,125.36,125.33,7.9816]
[1743273996746,0.05606022,125.36,125.33,7.9816]
[1743274000241,8.03616022,125.36,125.33,7.9816]
[1743274000443,0.05606022,125.36,125.33,7.9816]
[1743274001245,0.05606022,125.36,125.34,7.9813]
[1743274001552,0.05606022,125.36,125.31,30.9]
[1743274001750,0.05606022,125.36,125.35,7.9806]
[1743274002446,20.89310328,125.45,125.34,30.9]
[1743274002646,51.79310328,125.45,125.34,30.9]
[1743274002846,7.9761,125.43,125.34,30.9]
[1743274003047,51.79310328,125.45,125.39,7.9777]
[1743274003445,7.9765,125.42,125.41,0.05115077]
[1743274006262,0.0578191,125.43,125.41,0.05115077]
[1743274006443,0.0578191,125.43,125.41,30.95115077]
[1743274006843,0.0578191,125.43,125.42,7.9762]
[1743274008853,0.0578191,125.43,125.41,30.95115077]
[1743274009153,8.0337191,125.43,125.41,0.05115077]
[1743274009354,0.0578191,125.43,125.41,0.05115077]
[1743274009550,0.0578191,125.43,125.41,8.02785077]
[1743274010455,0.0578191,125.43,125.42,7.9762]
[1743274011055,0.0578191,125.43,125.42,38.8562]
[1743274011252,21.02560328,125.5,125.42,30.88]
[1743274011555,4.1371,125.5,125.42,30.88]
[1743274011747,16.88850328,125.49,125.42,38.8556]
[1743274012055,7.9735,125.47,125.42,30.88]
[1743274012555,0.05054567,125.46,125.43,8.02767334]
[1743274013759,0.05054567,125.46,125.44,7.9749]
[1743274014060,0.05054567,125.46,125.43,0.05217334]
[1743274015457,0.05054567,125.46,125.45,7.9743]
[1743274016152,0.05054567,125.46,125.43,0.05217334]
[1743274016849,7.9746,125.45,125.43,0.05217334]
[1743274017249,0.05054567,125.46,125.44,30.86]
[1743274017447,5.10524736,125.53,125.45,16.88850328]
[1743274017650,267.1875,125.54,125.45,18.99220328]
[1743274017854,43.79977545,125.53,125.5,7.9706]
[1743274018049,43.79977545,125.53,125.49,30.86]
[1743274018457,43.79977545,125.53,125.5,7.971]
[1743274018657,0.05779457,125.52,125.5,8.02152469]
[1743274019358,0.05779457,125.52,125.5,0.05052469]
[1743274021261,8.02819457,125.52,125.5,0.05052469]
[1743274021859,7.9705,125.51,125.5,0.05052469]
[1743274023368,16.88850328,125.5,125.44,30.86]
[1743274023859,7.9727,125.48,125.45,7.9741]
[1743274024356,7.9727,125.48,125.45,8.02896371]
[1743274024564,8.03152878,125.48,125.45,8.02896371]
[1743274025755,7.9733,125.47,125.45,0.05486371]
[1743274026060,0.05882878,125.48,125.45,0.05486371]
[1743274026963,16.94733206,125.48,125.41,30.84]
[1743274027358,16.88850328,125.48,125.41,30.84]
[1743274027559,16.88850328,125.48,125.42,7.976]
[1743274027560,7.9743,125.45,125.42,7.976]
[1743274027760,7.9743,125.45,125.41,30.84]
[1743274027959,16.88850328,125.48,125.41,30.84]
[1743274028262,0.0610091,125.44,125.42,0.05903659]
[1743274028463,16.88850328,125.46,125.42,0.05903659]
[1743274028664,0.05145154,125.44,125.42,0.05903659]
[1743274029660,7.9756,125.43,125.42,0.05903659]
[1743274030464,8.02665154,125.44,125.42,0.05903659]
[1743274031065,0.05145154,125.44,125.42,0.05903659]
[1743274031266,0.05145154,125.44,125.42,30.89903659]
[1743274031957,0.05145154,125.44,125.43,7.9756]
[1743274032163,16.88850328,125.5,125.42,30.89903659]
[1743274032361,7.9727,125.48,125.45,7.9739]
[1743274032557,16.88850328,125.5,125.45,30.84]
[1743274032757,16.88850328,125.5,125.43,30.84]
[1743274033270,0.05423155,125.48,125.45,0.05695234]
[1743274034366,7.9736,125.47,125.45,0.05695234]
[1743274035670,16.94273483,125.48,125.41,30.84]
[1743274035870,2.0053,125.47,125.41,30.84]
[1743274036472,16.88850328,125.46,125.41,30.84]
[1743274036770,16.88850328,125.46,125.42,0.05353579]
[1743274036771,7.9753,125.44,125.42,0.05353579]
[1743274038674,0.05817774,125.45,125.42,0.05353579]
[1743274039373,0.05817774,125.45,125.42,8.02963579]
[1743274039577,0.05817774,125.45,125.42,0.05353579]
[1743274039875,0.05817774,125.45,125.43,38.8152]
[1743274040072,0.05817774,125.45,125.43,30.84]
[1743274040476,0.05817774,125.45,125.44,7.9749]
[1743274041676,2.143,125.5,125.47,7.9728]
[1743274041876,2.143,125.5,125.43,32.8156]
[1743274042578,7.9722,125.49,125.46,7.9735]
[1743274042778,0.05982203,125.49,125.47,0.05517538]
[1743274043177,8.03192203,125.49,125.47,0.05517538]
[1743274043478,0.05982203,125.49,125.47,8.02817538]
[1743274045379,8.03162203,125.49,125.47,8.02817538]
[1743274045581,8.03162203,125.49,125.47,0.05517538]
[1743274045879,0.05982203,125.49,125.39,16.88850328]
[1743274046179,47.72850328,125.5,125.43,7.9753]
[1743274046380,7.9735,125.47,125.43,7.9753]
[1743274046679,7.9735,125.47,125.44,7.9749]
[1743274047074,7.9735,125.47,125.44,8.03143815]
[1743274047075,8.02619557,125.47,125.44,8.03143815]
[1743274047479,7.9737,125.46,125.44,0.05653815]
[1743274048377,0.05269557,125.47,125.44,0.05653815]
[1743274048576,325.79357873,125.54,125.45,47.70850328]
[1743274048777,5.14233139,125.53,125.45,49.82910328]
[1743274048977,5.14233139,125.52,125.5,7.9707]
[1743274049179,7.9695,125.53,125.5,7.9707]
[1743274049180,5.14233139,125.51,125.5,7.9707]
[1743274049479,7.9695,125.53,125.48,30.82]
[1743274049674,5.14261558,125.52,125.48,30.82]
[1743274049871,8.03094697,125.52,125.49,0.05422755]
[1743274050077,8.03094697,125.52,125.49,8.02562755]
[1743274050982,437.76195495,125.51,125.36,24.60472724]
[1743274051181,16.88850328,125.41,125.36,24.60472724]
[1743274051481,30.82,125.42,125.36,32.58472724]
[1743274051783,13.12503864,125.41,125.36,32.58472724]
[1743274051973,5.14823351,125.4,125.36,24.60472724]
[1743274052178,7.9784,125.39,125.37,0.05067367]
[1743274053477,0.06090804,125.4,125.38,30.82]
[1743274053676,8.41681951,125.47,125.38,34.867]
[1743274053878,13.67741673,125.46,125.38,34.867]
[1743274054082,13.67756561,125.45,125.38,34.867]
[1743274054382,5.26058143,125.44,125.38,34.867]
[1743274054577,30.82,125.46,125.38,34.867]
[1743274054782,0.05508757,125.42,125.4,0.06084131]
[1743274062187,0.05508757,125.42,125.41,30.82]
[1743274062385,2.1689,125.48,125.41,30.82]
[1743274062577,5.25623661,125.47,125.41,30.82]
[1743274062784,10.1417,125.48,125.43,7.975]
[1743274063283,13.66840863,125.47,125.44,7.9749]
[1743274063486,5.25708024,125.46,125.44,0.05085167]
[1743274063689,0.05678477,125.47,125.44,30.87085167]
[1743274063988,0.05678477,125.47,125.45,7.9739]
[1743274065393,0.05678477,125.47,125.46,7.9736]
[1743274068094,0.05678477,125.47,125.44,30.87085167]
[1743274068489,0.05678477,125.47,125.46,7.9736]
[1743274070294,262.96,125.5,125.49,7.9717]
[1743274070596,268.21930977,125.5,125.49,7.9717]
[1743274070794,5.25930977,125.5,125.49,7.9717]
[1743274071185,5.25930977,125.5,125.48,7.9722]
[1743274071387,0.05833388,125.51,125.48,8.02388164]
[1743274071585,5.25822341,125.5,125.48,8.02388164]
[1743274071792,0.05833388,125.51,125.48,8.02388164]
[1743274072093,5.25827972,125.5,125.48,8.02388164]
[1743274072295,8.02913388,125.51,125.48,8.02388164]
[1743274072499,5.25738135,125.5,125.49,7.9717]
[1743274072901,5.25738135,125.5,125.48,0.05168164]
[1743274073099,0.05833388,125.51,125.48,8.02378164]
[1743274073399,5.25752341,125.5,125.48,8.02378164]
[1743274073598,0.05833388,125.51,125.48,8.02388164]
[1743274073796,5.25697346,125.5,125.48,8.02388164]
[1743274074003,0.05833388,125.51,125.48,8.02388164]
[1743274074397,8.02893388,125.51,125.48,8.02388164]
[1743274074602,5.25684302,125.5,125.48,8.02388164]
[1743274074799,8.02893388,125.51,125.48,8.02388164]
[1743274075002,5.25627099,125.5,125.48,8.02388164]
[1743274075201,8.02893388,125.51,125.48,8.02388164]
[1743274075504,5.25577517,125.5,125.48,8.02388164]
[1743274075705,8.02893388,125.51,125.48,8.02388164]
[1743274076002,5.25577517,125.5,125.48,8.02388164]
[1743274076204,8.02893388,125.51,125.48,8.02388164]
[1743274076405,5.25557302,125.5,125.48,8.02388164]
[1743274076603,8.02893388,125.51,125.48,8.02388164]
[1743274076804,5.25515172,125.5,125.48,0.05168164]
[1743274077001,5.25541212,125.49,125.48,0.05168164]
[1743274079610,7.9715,125.5,125.48,0.05168164]
[1743274079803,5.25463413,125.49,125.48,0.05168164]
[1743274080405,7.9715,125.5,125.48,0.05168164]
[1743274080908,5.25417477,125.49,125.48,0.05168164]
[1743274081105,13.66146731,125.49,125.44,30.8]
[1743274081297,5.25417477,125.48,125.4,2.0199]
[1743274081607,7.9729,125.48,125.44,7.9745]
[1743274081905,16.87965159,125.49,125.44,7.9745]
[1743274082106,5.25468946,125.48,125.45,7.9742]
[1743274082404,0.05707003,125.48,125.45,0.05141174]
[1743274083301,0.05707003,125.48,125.46,7.9733]
[1743274083506,0.05707003,125.48,125.45,0.05141174]
[1743274083907,8.02977003,125.48,125.45,8.02531174]
[1743274084607,0.05707003,125.48,125.47,7.973]
[1743274084807,5.3124021,125.48,125.47,7.973]
[1743274085803,5.3124021,125.48,125.45,0.05141174]
[1743274086003,0.05707003,125.48,125.45,0.05141174]
[1743274086407,0.05707003,125.48,125.45,8.02541174]
[1743274087001,8.02977003,125.48,125.45,8.02541174]
[1743274087203,8.02977003,125.48,125.45,0.05141174]
[1743274087807,30.54435595,125.47,125.4,30.8]
[1743274088008,16.87965159,125.45,125.4,30.8]
[1743274088208,13.23112233,125.44,125.4,30.8]
[1743274088508,16.87965159,125.45,125.4,38.7771]
[1743274088808,5.25683525,125.44,125.4,30.8]
[1743274089010,0.05966559,125.44,125.41,0.05278985]
[1743274089601,0.05966559,125.44,125.43,7.9756]
[1743274090001,0.05966559,125.44,125.43,38.7756]
[1743274094609,0.05966559,125.44,125.43,30.8]
[1743274094909,0.05966559,125.44,125.41,30.85278985]
[1743274095110,8.03486559,125.44,125.41,38.82928985]
[1743274095300,8.03486559,125.44,125.41,30.85278985]
[1743274095506,0.05966559,125.44,125.41,30.85278985]
[1743274095702,0.05966559,125.44,125.42,7.9761]
[1743274096001,0.05966559,125.44,125.41,30.85278985]
[1743274096309,0.05966559,125.44,125.43,7.9756]
[1743274100110,7.9714,125.5,125.48,7.9723]
[1743274100312,5.26288052,125.49,125.48,7.9723]
[1743274100512,306.69977545,125.52,125.45,30.8]
[1743274100715,21.65446056,125.51,125.45,30.8]
[1743274100915,13.68376056,125.5,125.45,30.8]
[1743274101213,5.26298483,125.49,125.45,30.8]
[1743274101414,7.9707,125.51,125.49,7.9717]
[1743274101712,13.68396128,125.5,125.49,7.9717]
[1743274102010,13.68396128,125.5,125.49,8.02363377]
[1743274102514,5.26306203,125.5,125.49,8.02363377]
[1743274102711,0.058528,125.51,125.5,7.9711]
[1743274102915,5.32129151,125.51,125.5,7.9711]
[1743274105015,5.32129151,125.51,125.49,8.02343377]
[1743274105215,0.058528,125.51,125.49,8.02343377]
[1743274105708,0.058528,125.51,125.49,0.05193377]
[1743274105908,8.029228,125.51,125.49,0.05193377]
[1743274106519,0.058528,125.51,125.49,8.02363377]
[1743274107815,8.029028,125.51,125.49,8.02363377]
[1743274108818,8.029028,125.51,125.49,0.05193377]
[1743274109023,7.9711,125.5,125.49,0.05193377]
[1743274110522,13.69317891,125.5,125.45,32.9716]
[1743274110722,5.26660727,125.49,125.45,32.9716]
[1743274111022,7.9719,125.49,125.46,7.9732]
[1743274111213,16.87965159,125.51,125.46,7.9732]
[1743274111418,16.87965159,125.51,125.45,32.9716]
[1743274111419,13.69272474,125.5,125.45,40.9456]
[1743274111614,7.9728,125.48,125.47,0.05874278]
[1743274111821,5.26660803,125.48,125.43,38.7551]
[1743274112122,5.26677547,125.47,125.43,38.7551]
[1743274112322,7.9741,125.46,125.43,38.7551]
[1743274113115,7.9743,125.45,125.43,38.81626862]
[1743274113318,0.0558355,125.46,125.44,7.9749]
[1743274113824,5.26753715,125.45,125.43,0.06116862]
[1743274114123,0.0558355,125.46,125.43,0.06116862]
[1743274114324,7.9749,125.44,125.43,0.06116862]
[1743274114724,13.24284851,125.44,125.43,0.06116862]
[1743274115624,21.67112795,125.44,125.43,0.06116862]
[1743274115920,7.9774,125.41,125.38,30.78]
[1743274116125,16.87965159,125.43,125.37,32.8304]
[1743274116321,5.26636236,125.42,125.37,32.8304]
[1743274116619,16.87965159,125.43,125.37,2.0504]
[1743274116823,16.87965159,125.41,125.35,30.78]
[1743274117020,7.9797,125.37,125.33,10.1648]
[1743274117223,16.87965159,125.39,125.33,7.9817]
[1743274117425,0.05522186,125.36,125.33,7.9817]
[1743274118217,0.05522186,125.36,125.32,30.78]
[1743274118218,47.65965159,125.43,125.32,47.65965159]
[1743274118524,5.25786827,125.42,125.34,16.87965159]
[1743274118724,7.9763,125.42,125.35,32.7904]
[1743274118927,5.25774627,125.41,125.35,32.7904]
[1743274119126,16.87965159,125.43,125.35,32.7904]
[1743274119328,16.87965159,125.41,125.35,40.7708]
[1743274119527,16.87965159,125.41,125.38,0.06007893]
[1743274119528,5.31419033,125.4,125.38,0.06007893]
[1743274119729,0.05820293,125.4,125.38,0.06007893]
[1743274119927,7.9781,125.39,125.38,0.06007893]
[1743274120428,8.03590293,125.4,125.38,0.06007893]
[1743274120817,0.05820293,125.4,125.38,0.06007893]
[1743274121418,0.05820293,125.4,125.38,8.03857893]
[1743274121618,0.05820293,125.4,125.38,0.06007893]
[1743274123628,0.05820293,125.4,125.38,8.03877893]
[1743274124529,0.05820293,125.4,125.38,0.06007893]
[1743274125225,0.05820293,125.4,125.38,8.03847893]
[1743274126826,0.05820293,125.4,125.38,0.06007893]
[1743274127227,0.05820293,125.4,125.38,8.03817893]
[1743274128132,0.05820293,125.4,125.38,0.06007893]
[1743274129533,30.83820293,125.4,125.38,0.06007893]
[1743274129734,7.9781,125.39,125.38,0.06007893]
[1743274132739,24.85775159,125.39,125.35,7.9803]
[1743274133034,16.87965159,125.39,125.33,30.78]
[1743274133236,16.87965159,125.41,125.33,30.78]
[1743274133639,7.9775,125.4,125.33,30.78]
[1743274133836,0.0568203,125.38,125.33,30.78]
[1743274135335,0.0568203,125.38,125.36,7.9794]
[1743274135936,0.0568203,125.38,125.35,7.9804]
[1743274136537,0.0568203,125.38,125.36,7.98]
[1743274137036,0.0568203,125.38,125.35,7.9803]
[1743274137638,8.0356203,125.38,125.35,7.9803]
[1743274138743,0.0568203,125.38,125.36,30.78]
[1743274139143,0.0568203,125.38,125.37,7.9794]
[1743274139842,264.9767,125.44,125.42,7.9757]
[1743274139843,262.92,125.44,125.42,7.9757]
[1743274140237,262.92,125.44,125.37,2.0536]
[1743274140434,262.92,125.44,125.41,7.9765]
[1743274141043,262.97882568,125.44,125.41,8.02714897]
[1743274141438,270.95402568,125.44,125.41,8.02714897]
[1743274143644,7.9757,125.43,125.41,0.05064897]
[1743274144440,16.87965159,125.43,125.36,30.78]
[1743274144646,16.87965159,125.41,125.34,30.78]
[1743274144941,7.9784,125.39,125.35,7.9803]
[1743274145542,0.05064608,125.38,125.35,7.9803]
[1743274147145,8.02934608,125.38,125.34,38.7608]
[1743274147351,8.02934608,125.38,125.34,30.78]
[1743274148151,8.02934608,125.38,125.35,7.9803]
[1743274148654,7.9794,125.37,125.34,38.7609]
[1743274148856,0.05064608,125.38,125.31,2.139]
[1743274149051,16.87965159,125.39,125.31,32.919]
[1743274149246,0.05930075,125.36,125.31,32.919]
[1743274149853,8.03970075,125.36,125.33,7.9816]
[1743274150050,0.05930075,125.36,125.31,32.919]
[1743274150444,0.05930075,125.36,125.34,7.9807]
[1743274150951,0.05930075,125.36,125.32,30.78]
[1743274151148,0.05930075,125.36,125.35,7.9806]
[1743274151345,0.05930075,125.36,125.32,30.78]
[1743274151549,0.05930075,125.36,125.34,7.9809]
[1743274151954,0.05930075,125.36,125.32,30.78]
[1743274152456,0.05930075,125.36,125.34,7.9809]
[1743274153059,8.03930075,125.36,125.34,7.9809]
[1743274153558,0.05930075,125.36,125.33,7.9816]
[1743274153759,8.03960075,125.36,125.33,7.9816]
[1743274156656,0.05930075,125.36,125.34,7.9807]
[1743274156859,0.05930075,125.36,125.31,32.919]
[1743274157257,0.05930075,125.36,125.35,7.9806]
[1743274158962,0.05930075,125.36,125.34,7.9811]
[1743274160761,0.05930075,125.36,125.33,7.9816]
[1743274160963,0.05930075,125.36,125.31,32.919]
[1743274161162,8.03940075,125.36,125.31,32.919]
[1743274161363,8.03940075,125.36,125.33,7.9816]
[1743274162059,0.05930075,125.36,125.34,7.9812]
[1743274162368,0.05930075,125.36,125.31,32.919]
[1743274162562,265.1429,125.42,125.37,7.9792]
[1743274163068,263.1,125.42,125.35,30.78]
[1743274163261,263.1,125.42,125.36,2.1504]
[1743274163262,7.9774,125.41,125.36,2.1504]
[1743274163759,8.03537764,125.4,125.37,8.03247792]
[1743274164155,0.05787764,125.4,125.37,8.03247792]
[1743274164366,0.05787764,125.4,125.37,0.05367792]
[1743274164864,7.9786,125.39,125.37,0.05367792]
[1743274170171,7.9786,125.39,125.37,8.03277792]
[1743274171174,7.9786,125.39,125.37,0.05367792]
[1743274171766,0.05787764,125.4,125.37,0.05367792]
[1743274171971,5.10502442,125.39,125.37,0.05367792]
[1743274172171,8.03567764,125.4,125.37,0.05367792]
[1743274172470,5.10478797,125.39,125.38,7.9787]
[1743274172672,0.05787764,125.4,125.37,0.05367792]
[1743274174472,0.05787764,125.4,125.38,7.9783]
[1743274176175,0.05787764,125.4,125.39,7.9781]
[1743274176368,5.1605688,125.4,125.39,7.9781]
[1743274176873,0.05787764,125.4,125.39,7.9781]
[1743274177462,274.04994386,125.46,125.38,30.76]
[1743274177669,5.10137678,125.45,125.4,16.87965159]
[1743274177972,10.94994386,125.46,125.42,16.87965159]
[1743274178165,10.94994386,125.46,125.43,30.76]
[1743274178674,11.00715055,125.46,125.43,30.8182239]
[1743274180072,0.05720669,125.46,125.43,30.8182239]
[1743274181570,0.05720669,125.46,125.44,7.9749]
[1743274181973,0.05720669,125.46,125.43,30.8182239]
[1743274182170,8.03120669,125.46,125.43,38.7934239]
[1743274182474,8.03120669,125.46,125.43,30.8182239]
[1743274182677,0.05720669,125.46,125.44,7.9746]
[1743274184381,8.03140669,125.46,125.43,38.7932239]
[1743274185180,8.03140669,125.46,125.44,7.9749]
[1743274186082,0.05720669,125.46,125.44,7.9749]
[1743274194287,8.03090669,125.46,125.44,7.9749]
[1743274196687,7.9744,125.45,125.43,38.7934239]
[1743274197088,0.05720669,125.46,125.43,38.7934239]
[1743274197285,8.03120669,125.46,125.43,38.7934239]
[1743274198387,10.86448962,125.46,125.43,0.0582239]
[1743274198590,10.80728293,125.44,125.43,0.0582239]
[1743274199086,10.86448962,125.46,125.43,0.0582239]
[1743274199482,18.83838962,125.46,125.43,8.0333239]
[1743274200991,7.9744,125.45,125.43,8.0333239]
[1743274201488,10.86448962,125.46,125.43,8.0333239]
[1743274201690,18.83878962,125.46,125.43,8.0333239]
[1743274201886,10.86448962,125.46,125.43,8.0333239]
[1743274202584,0.05720669,125.46,125.44,10.80728293]
[1743274202893,122.5409825,125.53,125.45,30.72]
[1743274203091,10.94994386,125.52,125.45,30.72]
[1743274203283,10.94994386,125.52,125.47,10.80728293]
[1743274203489,18.77718293,125.52,125.49,7.9714]
[1743274203690,10.80728293,125.52,125.48,30.72]
[1743274203891,43.79977545,125.53,125.48,30.72]
[1743274204092,0.05141105,125.51,125.49,0.05664044]
[1743274204984,10.85869398,125.51,125.49,0.05664044]
[1743274205189,7.9711,125.5,125.49,0.05664044]
[1743274205794,8.02221105,125.51,125.49,0.05664044]
[1743274206195,0.05141105,125.51,125.49,0.05664044]
[1743274206493,7.9711,125.5,125.49,0.05664044]
[1743274207091,7.9728,125.48,125.43,4.0128]
[1743274207397,7.9728,125.48,125.44,30.72]
[1743274207791,7.9721,125.49,125.46,7.9736]
[1743274208090,47.5971414,125.54,125.47,30.72]
[1743274208289,0.05074277,125.49,125.48,7.9722]
[1743274208484,47.5971414,125.54,125.49,0.05728638]
[1743274208485,0.05162905,125.5,125.49,0.05728638]
[1743274208685,16.8771414,125.54,125.49,0.05728638]
[1743274208894,0.05692239,125.51,125.49,8.02868638]
[1743274209795,8.02742239,125.51,125.49,0.05728638]
[1743274209995,0.05692239,125.51,125.49,0.05728638]
[1743274210395,8.02772239,125.51,125.49,0.05728638]
[1743274210799,0.05692239,125.51,125.49,0.05728638]
[1743274211195,0.05692239,125.51,125.5,30.7]
[1743274211596,8.02782239,125.51,125.49,0.05728638]
[1743274211897,0.05692239,125.51,125.49,0.05728638]
[1743274212090,0.05692239,125.51,125.49,8.02868638]
[1743274213094,8.02752239,125.51,125.49,8.02868638]
[1743274213295,0.05692239,125.51,125.49,0.05728638]
[1743274213702,7.9738,125.46,125.43,7.9752]
[1743274213899,7.9738,125.46,125.43,38.6752]
[1743274214102,18.9701414,125.5,125.43,30.7]
[1743274214300,5.07855686,125.49,125.43,30.7]
[1743274214600,5.07855686,125.48,125.43,30.7]
[1743274214799,18.9701414,125.5,125.45,0.05253959]
[1743274214800,7.9742,125.46,125.45,0.05253959]
[1743274215996,7.9756,125.43,125.41,30.7]
[1743274216201,47.5771414,125.48,125.41,30.7]
[1743274216402,7.9753,125.44,125.41,38.6767]
[1743274216995,8.03517544,125.44,125.41,38.69844652]
[1743274217602,7.9756,125.43,125.41,30.72174652]
[1743274218304,8.03507544,125.44,125.41,38.69854652]
[1743274219705,7.9756,125.43,125.41,30.72174652]
[1743274220307,8.03507544,125.44,125.41,38.69844652]
[1743274220504,8.03507544,125.44,125.41,7.99844652]
[1743274222808,0.05987544,125.44,125.41,0.02174652]
[1743274224506,8.03537544,125.44,125.41,7.99854652]
[1743274224711,0.05987544,125.44,125.41,7.99854652]
[1743274225012,8.03507544,125.44,125.42,7.9762]
[1743274225202,0.05987544,125.44,125.42,7.9762]
[1743274225409,0.05987544,125.44,125.41,0.02174652]
[1743274225605,0.05987544,125.44,125.43,7.9756]
[1743274226503,0.05987544,125.44,125.42,30.7]
[1743274227012,0.05987544,125.44,125.42,38.6759]
[1743274227612,8.03487544,125.44,125.42,38.6759]
[1743274227817,0.05987544,125.44,125.42,30.7]
[1743274228012,0.05987544,125.44,125.41,30.72174652]
[1743274228713,7.9762,125.42,125.41,0.02174652]
[1743274228906,18.79315156,125.42,125.41,0.02174652]
[1743274229215,10.81695156,125.42,125.41,0.02174652]
[1743274230811,18.79315156,125.42,125.41,0.02174652]
[1743274231017,7.9762,125.42,125.41,0.02174652]
[1743274233918,7.9757,125.43,125.41,0.02174652]
[1743274237017,8.03507544,125.44,125.41,7.99854652]
[1743274237217,0.05987544,125.44,125.41,7.99854652]
[1743274237418,0.05987544,125.44,125.41,0.02174652]
[1743274237920,0.05987544,125.44,125.41,7.99844652]
[1743274238315,8.03517544,125.44,125.41,7.99844652]
[1743274238721,0.05987544,125.44,125.42,7.9759]
[1743274239420,0.05987544,125.44,125.41,7.99824652]
[1743274240220,0.05987544,125.44,125.41,0.02174652]
[1743274241120,7.9759,125.43,125.41,0.02174652]
[1743274241325,0.05987544,125.44,125.41,0.02174652]
[1743274242223,16.89993538,125.43,125.36,32.7336]
[1743274242426,19.00703538,125.43,125.36,30.7]
[1743274242626,7.9778,125.4,125.37,7.979]
[1743274242818,49.70703538,125.43,125.36,30.7]
[1743274243021,2.1071,125.43,125.36,30.7]
[1743274243222,2.1531,125.46,125.37,18.89063538]
[1743274243422,0.05161645,125.41,125.37,20.97883538]
[1743274244428,0.05161645,125.41,125.4,7.9775]
[1743274244627,0.05161645,125.41,125.4,38.6775]
[1743274246025,0.05161645,125.41,125.37,34.7789]
[1743274247631,0.05161645,125.41,125.39,7.9777]
[1743274248732,8.02851645,125.41,125.39,7.9777]
[1743274249031,0.05161645,125.41,125.39,7.9777]
[1743274251230,0.05161645,125.41,125.37,34.7789]
[1743274251425,0.05161645,125.41,125.38,10.81694967]
[1743274251627,10.81694967,125.46,125.4,10.81694967]